[Event "SixDays Budapest IM-B 10-2024"]
[Site "Budapest"]
[Date "2024.10.02"]
[Round "4.2"]
[White "Kao, Jamison Edrich"]
[Black "Nanditha V"]
[Result "1-0"]
[ECO "B12"]
[WhiteElo "2125"]
[BlackElo "1903"]
[Annotator "RC"]
[PlyCount "209"]
[EventDate "2024.09.24"]
[EventType "tourn"]
[EventCountry "HUN"]
[SourceTitle "playchess.com"]
[Source "ChessBase"]
[SourceQuality "1"]
[TimeControl "5400+30"]

1. e4 {[%emt 0:03:31]} c6 {[%emt 0:01:15]} 2. d4 {[%emt 0:00:04]} d5 {[%emt 0:00:03]} 3. e5 {[%emt 0:00:03]} c5 {[%emt 0:00:03]} 4. Nf3 {[%emt 0:00:17]} Nc6 {[%emt 0:00:14]} 5. dxc5 {[%emt 0:00:07]} Bg4 {[%emt 0:00:33]} 6. c3 {[%emt 0:00:06]} e6 {[%emt 0:00:39]} 7. Be3 {[%emt 0:00:24]} Bxf3 {[%emt 0:01:12]} 8. Qxf3 {[%emt 0:00:20]} Nxe5 {[%emt 0:00:00]} 9. Qg3 {[%emt 0:00:00]} Nc6 {[%emt 0:00:26]} 10. Bd3 {[%emt 0:00:19]} Nf6 {[%emt 0:10:57]} 11. O-O {[%emt 0:00:29]} Qb8 {[%emt 0:01:34]} 12. f4 {[%emt 0:04:32]} Qc7 {[%emt 0:01:02]} 13. Nd2 {[%emt 0:00:58]} O-O-O {[%emt 0:00:19]} 14. b4 {[%emt 0:00:19]} d4 {[%emt 0:00:09]} 15. cxd4 {[%emt 0:04:48]} Nxb4 {[%emt 0:00:28]} 16. Bb1 {[%emt 0:06:05]} Nbd5 {[%emt 0:01:46]} 17. Nb3 {[%emt 0:00:46]} Nxe3 {[%emt 0:02:56]} 18. Qxe3 {[%emt 0:00:03]} g6 {[%emt 0:01:13]} 19. Bd3 {[%emt 0:00:22]} Bg7 {[%emt 0:00:20]} 20. Rab1 {[%emt 0:03:23]} h5 {[%emt 0:02:56]} 21. Qd2 {[%emt 0:03:42]} h4 {[%emt 0:01:36]} 22. Be2 {[%emt 0:08:23]} Rd7 {[%emt 0:03:44]} 23. c6 {[%emt 0:01:12]} bxc6 {[%emt 0:01:21]} 24. Ba6+ {[%emt 0:01:14]} Kd8 {[%emt 0:00:19]} 25. Nc5 {[%emt 0:00:04]} Ke7 {[%emt 0:07:34]} 26. Nxd7 {[%emt 0:16:58]} Nxd7 {[%emt 0:00:16]} 27. Qb4+ {[%emt 0:01:29]} Qd6 {[%emt 0:00:10]} 28. Rfd1 {[%emt 0:00:12]} Qxb4 {[%emt 0:00:59]} 29. Rxb4 {[%emt 0:00:05]} Nb6 {[%emt 0:00:03]} 30. Rc1 {[%emt 0:06:34]} Rd8 {[%emt 0:00:39]} 31. Rxc6 {[%emt 0:00:24]} Bxd4+ {[%emt 0:00:11]} 32. Kf1 {[%emt 0:00:35]} Be3 {[%emt 0:01:13]} 33. Ke2 {[%emt 0:02:40]} Nd5 {[%emt 0:01:43]} 34. Rb7+ {[%emt 0:00:08]} Kf6 {[%emt 0:00:15]} 35. g3 {[%emt 0:00:15]} hxg3 {[%emt 0:00:14]} 36. hxg3 {[%emt 0:00:05]} Bb6 {[%emt 0:00:43]} 37. a3 {[%emt 0:04:34]} Rh8 {[%emt 0:00:55]} 38. Rd6 {[%emt 0:01:59]} Rh2+ {[%emt 0:00:30]} 39. Kf3 {[%emt 0:01:06]} Rf2+ {[%emt 0:00:52]} 40. Kg4 {[%emt 0:01:46]} Ne3+ {[%emt 0:00:33]} 41. Kh3 {[%emt 0:00:07]} g5 {[%emt 0:01:06]} 42. fxg5+ {[%emt 0:02:21]} Kxg5 {[%emt 0:00:15]} 43. Rb8 {[%emt 0:00:22]} Kf6 {[%emt 0:01:16]} 44. Rd7 {[%emt 0:04:03]} Ke5 {[%emt 0:03:18]} 45. Re8 {[%emt 0:00:36]} Nd5 {[%emt 0:04:10]} 46. Rh8 {[%emt 0:06:15]} f5 {[%emt 0:04:08]} 47. Rh6 {[%emt 0:01:21]} Nf6 {[%emt 0:02:05]} 48. Re7 {[%emt 0:01:14]} Bd8 {[%emt 0:02:27]} 49. Rg7 {[%emt 0:01:20]} Ng4 {[%emt 0:02:29]} 50. Rxg4 {[%emt 0:00:06]} fxg4+ {[%emt 0:00:02]} 51. Kxg4 {[%emt 0:00:01]} Bf6 {[%emt 0:02:52]} 52. a4 {[%emt 0:00:19]} Rb2 {[%emt 0:01:12]} 53. Bb5 {[%emt 0:00:16]} a6 {[%emt 0:00:31]} 54. Bxa6 {[%emt 0:03:02]} Rb4+ {[%emt 0:00:04]} 55. Kh5 {[%emt 0:00:06]} Rxa4 {[%emt 0:00:28]} 56. Bc8 {[%emt 0:00:41]} Rc4 {[%emt 0:00:37]} 57. Bb7 {[%emt 0:01:48]} Rb4 {[%emt 0:00:10]} 58. Bc6 {[%emt 0:00:45]} Rc4 {[%emt 0:00:09]} 59. Bb5 {[%emt 0:01:13]} Rc5 {[%emt 0:01:36]} 60. Kg6 {[%emt 0:00:23]} Be7 {[%emt 0:01:04]} 61. Kf7 {[%emt 0:01:54]} Ke4 {[%emt 0:01:18]} 62. Rxe6+ {[%emt 0:01:06]} Kf3 {[%emt 0:01:02]} 63. Bc6+ {[%emt 0:00:27]} Kxg3 {[%emt 0:00:20]} 64. Kxe7 {[%emt 0:00:05]} Kf4 {[%emt 0:00:38]} 65. Kd6 {[%emt 0:01:24]} Ra5 {[%emt 0:00:45]} 66. Re8 {[%emt 0:00:17]} Rg5 {[%emt 0:00:58]} 67. Bd5 {[%emt 0:00:14]} Rg6+ {[%emt 0:01:20]} 68. Kc5 {[%emt 0:00:06]} Rg1 {[%emt 0:00:53]} 69. Re4+ {[%emt 0:01:01]} Kf5 {[%emt 0:00:05]} 70. Re2 {[%emt 0:00:12]} Rc1+ {[%emt 0:00:11]} 71. Kd6 {[%emt 0:00:05]} Kf4 {[%emt 0:00:49]} 72. Rf2+ {[%emt 0:00:08]} Ke3 {[%emt 0:00:51]} 73. Rf3+ {[%emt 0:00:04]} Kd4 {[%emt 0:00:21]} 74. Rf4+ {[%emt 0:00:03]} Ke3 {[%emt 0:00:10]} 75. Ke5 {[%emt 0:00:05]} Rc8 {[%emt 0:00:10]} 76. Rf3+ {[%emt 0:00:04]} Ke2 {[%emt 0:00:18]} 77. Kd4 {[%emt 0:01:05]} Rh8 {[%emt 0:00:14]} 78. Ra3 {[%emt 0:00:47]} Rh4+ {[%emt 0:01:12]} 79. Be4 {[%emt 0:00:04]} Kf2 {[%emt 0:00:49]} 80. Rf3+ {[%emt 0:02:59]} Ke2 {[%emt 0:00:07]} 81. Rg3 {[%emt 0:00:02]} Kf2 {[%emt 0:00:36]} 82. Rg2+ {[%emt 0:00:08]} Kf1 {[%emt 0:00:33]} 83. Ra2 {[%emt 0:00:37]} Rg4 {[%emt 0:03:50]} 84. Ke3 {[%emt 0:00:21]} Kg1 {[%emt 0:00:13]} 85. Rb2 {[%emt 0:06:15]} Rg5 {[%emt 0:01:07]} 86. Kf4 {[%emt 0:02:13]} Ra5 {[%emt 0:02:19]} 87. Bf3 {[%emt 0:00:16]} Kf1 {[%emt 0:01:02]} 88. Kg3 {[%emt 0:00:20]} Rg5+ {[%emt 0:01:11]} 89. Bg4 {[%emt 0:00:15]} Ke1 {[%emt 0:00:21]} 90. Re2+ {[%emt 0:00:13]} Kf1 {[%emt 0:00:00]} 91. Rd2 {[%emt 0:00:00]} Re5 {[%emt 0:00:25]} 92. Rd6 {[%emt 0:02:49]} Re7 {[%emt 0:01:25]} 93. Rd8 {[%emt 0:00:43]} Re5 {[%emt 0:00:18]} 94. Kf4 {[%emt 0:02:45]} Re7 {[%emt 0:00:15]} 95. Bf3 {[%emt 0:00:36]} Rf7+ {[%emt 0:00:23]} 96. Ke3 {[%emt 0:00:16]} Re7+ {[%emt 0:01:19]} 97. Be4 {[%emt 0:00:06]} Ke1 {[%emt 0:00:59]} 98. Rb8 {[%emt 0:00:45]} Rd7 {[%emt 0:00:19]} 99. Rb6 {[%emt 0:01:03]} Rd8 {[%emt 0:00:21]} 100. Rb7 {[%emt 0:00:29]} Rd6 {[%emt 0:00:41]} 101. Bf5 {[%emt 0:00:05]} Rd5 {[%emt 0:00:40]} 102. Rb8 {[%emt 0:01:07]} Rd6 {[%emt 0:00:30]} 103. Rh8 {[%emt 0:00:25]} Kf1 {[%emt 0:00:47]} 104. Be4 {[%emt 0:00:03]} Rb6 {[%emt 0:03:46]} 105. Rh1# {[%emt 0:00:10]} 1-0

[Event "SixDays Budapest IM-B 10-2024"]
[Site "Budapest"]
[Date "2024.10.02"]
[Round "4.3"]
[White "Horvath, David"]
[Black "To, Nhat Minh"]
[Result "1/2-1/2"]
[ECO "D27"]
[WhiteElo "2327"]
[BlackElo "2300"]
[Annotator "RC"]
[PlyCount "21"]
[EventDate "2024.09.24"]
[EventType "tourn"]
[EventCountry "HUN"]
[SourceTitle "playchess.com"]
[Source "ChessBase"]
[SourceQuality "1"]
[TimeControl "5400+30"]

1. d4 d5 2. c4 e6 3. Nf3 c6 4. e3 Nf6 5. Bd3 dxc4 6. Bxc4 a6 7. O-O c5 8. a4 Be7 9. Qe2 cxd4 10. exd4 O-O 11. Nc3 1/2-1/2

[Event "SixDays Budapest IM-B 10-2024"]
[Site "Budapest"]
[Date "2024.10.02"]
[Round "4.4"]
[White "Bhagat Kush"]
[Black "Nemeth, Zalan"]
[Result "0-1"]
[ECO "D31"]
[WhiteElo "2245"]
[BlackElo "2211"]
[Annotator "TA"]
[PlyCount "118"]
[EventDate "2024.09.24"]
[EventType "tourn"]
[EventCountry "HUN"]
[SourceTitle "playchess.com"]
[Source "ChessBase"]
[SourceQuality "1"]
[TimeControl "5400+30"]

{[%evp 47,118,-164,-157,-162,-112,-118,-25,-31,-33,-26,-29,-25,0,0,0,0,0,0,0,0,0,-25,32,31,71,8,8,-39,-31,-29943,-29947,-29950,-29951,-29949,-12266,-29951,-5093,-29962,-29964,-29970,-29971,-29970,-29970,-29971,-29972,-29972,-29973,-29972,-29974,-29974,-29973,-29975,-8,-8,0,-29975,-29976,-29976,-29977,-29977,-29978,-29978,-29978,-29979,-29980,-29980,-29981,-29981,-29979,-29979,-29980,-29980,-29981]} 1. d4 {[%emt 0:07:36]} d5 {[%emt 0:00:03]} 2. c4 {[%emt 0:00:10]} c6 {[%emt 0:00:24]} 3. Nc3 {[%emt 0:00:07]} e6 {[%emt 0:00:11]} 4. e4 {[%emt 0:00:07]} dxe4 {[%emt 0:00:06]} 5. Nxe4 {[%emt 0:00:05]} Bb4+ {[%emt 0:00:05]} 6. Nc3 {[%emt 0:00:11]} e5 {[%emt 0:00:34] D31: Queen's Gambit Declined: Semi-Slav without ...Nf6 (+ Marshall Gambit and Noteboom) and Exchange Variation lines without ...Nf6.} 7. a3 {[%emt 0:03:16]} Bxc3+ {[%emt 0:09:35]} 8. bxc3 {[%emt 0:00:02]} Qa5 {[%emt 0:00:13]} 9. Bd2 {[%emt 0:03:12]} Nf6 {[%emt 0:00:07]} 10. Nf3 {[%emt 0:04:19]} Nbd7 {[%emt 0:12:17]} 11. h3 {[%emt 0:30:07]} Ne4 $146 {[%emt 0:11:28]} ({Predecessor:} 11... O-O 12. Qc2 e4 13. Nh2 Nb6 14. c5 Qa4 15. Qb1 Nc4 16. Qb4 Qxb4 17. axb4 Be6 {1-0 Mendl,M (2537)-Bock,S (2562) W-ch32 final email 2020}) 12. Bd3 {[%emt 0:08:19]} Nxd2 {[%emt 0:00:07]} 13. Qxd2 {[%emt 0:00:04]} O-O {[%emt 0:00:57]} 14. O-O {[%emt 0:01:04]} exd4 {[%emt 0:00:55]} 15. cxd4 {[%emt 0:00:06]} Qxd2 {[%emt 0:05:17]} 16. Nxd2 {[%emt 0:00:20]} Rd8 {[%emt 0:01:05]} 17. a4 {[%emt 0:09:27]} Nc5 {[%emt 0:13:17]} 18. dxc5 {[%emt 0:01:25]} Rxd3 {[%emt 0:00:13]} 19. Ne4 {[%emt 0:03:39]} Be6 {[%emt 0:02:44]} 20. Rfb1 {[%emt 0:06:57]} Rd7 {[%emt 0:08:27]} 21. Rb4 {[%emt 0:07:39]} f5 {[%emt 0:04:50]} 22. Ng5 {[%emt 0:00:47]} a5 {[%emt 0:01:31]} 23. Rb2 {[%emt 0:05:13]} Bxc4 {[%emt 0:00:07]} 24. Re1 {[%emt 0:04:06]} Ba6 {[%emt 0:02:46]} 25. Re5 {[%emt 0:00:38]} Rad8 {[%emt 0:08:08]} ({Better is} 25... h6 $19 26. Nf3 Rad8 27. Rxf5 Rd1+ 28. Kh2 Rc1) 26. Rxf5 $17 {[%emt 0:00:58]} Rd5 {[%emt 0:00:20]} (26... h6 $17 27. Ne4 Rd4) 27. Ne6 $11 {[%emt 0:01:43]} Rxf5 {[%emt 0:01:59]} 28. Nxd8 {[%emt 0:00:02]} Rf4 {[%emt 0:02:26]} 29. Nxb7 {[%emt 0:00:44]} Rb4 {[%emt 0:00:25]} 30. Rxb4 {[%emt 0:00:02]} (30. Nxa5 $2 Rxb2 31. Nxc6 Rc2 $19) 30... axb4 {[%emt 0:00:02]} 31. Na5 {[%emt 0:00:01]} Bd3 {[%emt 0:03:38]} 32. Nb3 $1 {[%emt 0:02:11]} (32. Nxc6 $2 b3 33. Ne7+ Kf7 $19) (32. f3 Bc2 33. Kf2 (33. Nxc6 b3 $19) 33... Bxa4 $15) 32... Kf7 {[%emt 0:01:40]} (32... Bc2 $2 33. a5 Bd3 (33... Bxb3 $2 34. a6 $18) 34. f4 $16) 33. f4 {[%emt 0:00:24]} Ke6 {[%emt 0:00:42]} (33... Bc2 34. a5 Bd3 (34... Bxb3 $2 35. a6 $18) 35. Kf2 $18) 34. Kf2 {[%emt 0:00:12]} Kd5 {[%emt 0:02:59]} (34... Bc4 $11 35. a5 Kd7 (35... Bxb3 $2 36. a6 $18)) 35. Ke3 $14 {[%emt 0:00:23]} Kc4 {[%emt 0:01:01] [#]} (35... Bc2 $2 36. a5 Bxb3 37. a6 $18) 36. a5 {[%emt 0:01:58]} (36. Na5+ $2 Kc3 37. h4 Bc2 $19) ({White should try} 36. Nd2+ $1 $16 Kc3 37. g4) 36... Kc3 $1 $11 {[%emt 0:00:03]} 37. Nd4 {[%emt 0:00:22]} (37. g4 $11 {is more appropriate.}) 37... Ba6 $15 {[%emt 0:00:13]} 38. Ke4 $2 {[%emt 0:00:06][%mdl 8192]} (38. Nf3 $15) 38... b3 {[%emt 0:00:08]} 39. Nxb3 {[%emt 0:00:05]} Kxb3 {[%emt 0:00:02]} 40. Ke5 {[%emt 0:00:05]} Kb4 {[%emt 0:04:22]} (40... Ka4 $142 41. h4 Kxa5 42. Kd6 Bf1 43. Kxc6 Bxg2+ 44. Kd6 Bf3 45. c6 Kb6 46. Ke6 Bg4+ (46... Bxc6 $2 47. f5 $19) 47. Kd6 g6 48. Kd5 Kc7 49. Kd4 Kxc6 50. Ke5 Kc5 51. Ke4 Bf5+ 52. Ke3 h5 53. Ke2 Kd4 54. Kf3 Bg4+ 55. Kf2 Ke4 56. Kg1 Kxf4 57. Kf1 g5 (57... Kg3 58. Ke1 Kxh4 59. Kf2 Kh3 60. Kf1 Kg3 61. Ke1 h4 62. Kd2 h3 63. Ke3 h2 64. Kd3 h1=Q 65. Kc4 Qc6+ 66. Kb3 Bd1+ 67. Kb4 Kf2 68. Ka3 Qb5 69. Ka2 Bc2 70. Ka3 Qb3#) 58. hxg5 Kxg5 59. Kg1 Kf4 60. Kf1 Ke3 61. Kg2 h4 62. Kg1 Ke2 63. Kg2 Ke1 64. Kg1 h3 65. Kh1 Kf1 66. Kh2 Kf2 67. Kh1 Kg3 68. Kg1 h2+ 69. Kh1 Bf3#) 41. Kd6 {[%emt 0:00:02]} Kxa5 {[%emt 0:00:23]} 42. Kxc6 {[%emt 0:00:47]} Bf1 {[%emt 0:00:04]} 43. Kd6 {[%emt 0:02:04]} Bxg2 {[%emt 0:01:58]} 44. h4 {[%emt 0:00:14]} g6 {[%emt 0:02:21]} 45. h5 {[%emt 0:00:41]} Kb5 {[%emt 0:01:31]} 46. hxg6 {[%emt 0:00:47]} hxg6 {[%emt 0:00:04]} 47. Ke5 {[%emt 0:00:07] [#]} Bh3 $1 {[%emt 0:00:12]} ({Not} 47... Kxc5 48. f5 $11) 48. Kd5 {[%emt 0:00:05]} Bc8 {[%emt 0:00:58]} 49. Kd6 {[%emt 0:00:58]} Bb7 $2 {[%emt 0:01:06]} (49... Kc4 {mates} 50. c6 Bf5 51. c7 Kb5 52. Kd5 Kb6 53. Kd6 Bh3 (53... Kb7 {leads to mate.} 54. c8=R Kxc8 55. Kc6 Kd8 56. Kd6 Ke8 57. Kd5 Ke7 58. Ke5 Bb1 59. Kd4 Ke6 60. Ke3 Kf5 61. Kf3 Bc2 62. Kf2 Kxf4 63. Kf1 g5 64. Kf2 Be4 65. Ke2 g4 66. Kf2 g3+ 67. Ke2 g2 68. Kf2 Bd5 69. Kg1 Ke3 70. Kh2 Kf2 71. Kh3 g1=Q 72. Kh4 Qg6 73. Kh3 Qh5#) 54. Ke7 Kxc7 55. Kf6 Bf5 56. Ke5 Kd7 57. Kd5 Ke7 58. Kd4 Kf6 59. Ke3 Bc8 60. Ke4 Bb7+ 61. Kd4 Kf5 62. Ke3 Ba8 63. Kd4 Kxf4 64. Kd3 g5 65. Kd2 g4 66. Kc3 g3 67. Kd3 g2 68. Kd4 g1=Q+ (68... g1=R {is a self mate.} 69. Kd3 Ke5 70. Ke3 Rg3+ 71. Kd2 Kd4 72. Kc2 Rg2+ 73. Kb3 Bd5+ 74. Kb4 Bc4 75. Ka3 Kc5 76. Ka4 Ra2#) 69. Kc4 Qe3 70. Kb5 Qd4 71. Ka5 Qb2 72. Ka6 Bc6 73. Ka7 Qb7#) 50. Ke5 $1 $11 {[%emt 0:00:09]} Bc8 $2 {[%emt 0:00:36][%mdl 8192]} (50... Kb4 $11) 51. Kd6 {[%emt 0:00:05]} Kc4 {[%emt 0:00:31]} 52. c6 {[%emt 0:00:05]} Kb5 {[%emt 0:00:26]} 53. Kd5 {[%emt 0:00:37]} Kb6 {[%emt 0:00:07]} 54. Kd6 {[%emt 0:00:04]} Bg4 {[%emt 0:00:19]} 55. Kd5 {[%emt 0:00:42]} Kc7 {[%emt 0:00:18]} 56. Kc5 {[%emt 0:00:11]} Bf3 {[%emt 0:00:07]} 57. Kd4 Bxc6 {[%emt 0:00:44]} 58. Ke5 {[%emt 0:00:06]} Bd7 {[%emt 0:00:04]} 59. Kf6 {[%emt 0:00:06]} Bf5 {[%emt 0:00:04]} 0-1

[Event "SixDays Budapest IM-B 10-2024"]
[Site "Budapest"]
[Date "2024.10.02"]
[Round "4.5"]
[White "Md Imran"]
[Black "Fodor, Balazs"]
[Result "1-0"]
[ECO "D02"]
[WhiteElo "2337"]
[BlackElo "2240"]
[Annotator "TA"]
[PlyCount "121"]
[EventDate "2024.09.24"]
[EventType "tourn"]
[EventCountry "HUN"]
[SourceTitle "playchess.com"]
[Source "ChessBase"]
[SourceQuality "1"]
[TimeControl "5400+30"]

{[%evp 9,121,5,35,17,22,0,22,0,6,0,25,15,28,20,28,27,83,77,62,70,80,81,89,68,147,136,169,171,142,147,207,206,214,191,264,297,270,295,271,164,380,354,345,378,347,362,364,336,466,106,100,116,112,110,104,113,123,16,91,100,97,80,107,19,204,0,0,0,105,66,58,43,71,51,61,0,98,102,96,93,105,94,97,93,132,140,160,153,158,147,164,78,265,305,305,301,535,535,535,535,12798,12798,12798,12797,11866,4134,29942,29960,7132,6262,29980,29981,29980,29981]} 1. d4 {[%emt 0:13:02]} Nf6 {[%emt 0:00:10]} 2. Bf4 {[%emt 0:00:09]} d5 {[%emt 0:05:45]} 3. Nf3 {[%emt 0:02:15]} c5 {[%emt 0:00:18]} 4. e3 {[%emt 0:01:38]} Nc6 {[%emt 0:00:12]} 5. dxc5 {[%emt 0:01:29]} Qa5+ {[%emt 0:06:49]} 6. c3 {[%emt 0:04:59]} Qxc5 {[%emt 0:00:09]} 7. b4 {[%emt 0:00:02]} Qb6 {[%emt 0:00:13]} 8. a4 {[%emt 0:00:28] The position is equal.} a6 {[%emt 0:03:42]} 9. Nbd2 {[%emt 0:00:33]} g6 {[%emt 0:05:18]} 10. Ne5 {[%emt 0:04:54]} Nd7 {[%emt 0:11:14]} 11. a5 {[%emt 0:04:49]} Qd8 {[%emt 0:01:10]} 12. Qa4 {[%emt 0:01:47]} Ndxe5 {[%emt 0:22:08]} (12... Qc7 $11 13. Nxc6 Qxc6) 13. Bxe5 $16 {[%emt 0:00:06]} f6 {[%emt 0:00:16]} 14. Bd4 {[%emt 0:01:00] White is more active.} Kf7 {[%emt 0:10:16]} 15. Bb6 {[%emt 0:00:25]} Qd6 {[%emt 0:00:59]} 16. Rd1 {[%emt 0:00:57][%cal Od2c4]} Qe5 {[%emt 0:03:21]} (16... Ne5 $14) 17. Qb3 {[%emt 0:01:29]} Bg4 {[%emt 0:01:06]} 18. f3 $1 {[%emt 0:02:44]} Be6 {[%emt 0:00:07]} 19. f4 {[%emt 0:00:23]} Qf5 {[%emt 0:05:34]} (19... Qd6 $16 20. Be2 Bg7) 20. h3 {[%emt 0:01:07]} h5 {[%emt 0:05:54]} 21. Be2 {[%emt 0:03:46]} d4 {[%emt 0:00:25]} (21... Kg7 $142 22. g4 hxg4) 22. c4 $1 $18 {[%emt 0:00:16]} dxe3 {[%emt 0:02:54]} 23. Bxe3 {[%emt 0:00:09]} (23. Qxe3 g5 $16) 23... Rd8 {[%emt 0:01:05] Repels Bd3} 24. Qc3 {[%emt 0:00:27] Wards off Nd4} Bc8 $2 {[%emt 0:02:18]} (24... g5 {was necessary.}) 25. b5 {[%emt 0:00:14]} Nb8 {[%emt 0:02:52]} 26. O-O {[%emt 0:00:05]} Bh6 {[%emt 0:01:07]} 27. Nb3 {[%emt 0:01:51] Threatens to win with g4.} Rxd1 {[%emt 0:00:29]} 28. Bxd1 {[%emt 0:00:02]} (28. Rxd1 Bxf4 29. Bxf4 Qxf4 $16) 28... axb5 {[%emt 0:02:52][%cal Ob5b4]} 29. Nd4 $2 {[%emt 0:03:37]} (29. Nc5 $18 b4 30. Qd2 (30. Qxb4 Na6 $18) 30... Bxf4 31. Rxf4) 29... b4 $16 {[%emt 0:00:08]} 30. Qxb4 {[%emt 0:00:18]} Qd3 {[%emt 0:02:27] [#]} 31. Qe1 {[%emt 0:00:59] Bc2 is the strong threat.} Nc6 {[%emt 0:00:51]} (31... Rd8 $2 32. Bc2 Qa3 33. Nb5 $18) 32. Bc2 {[%emt 0:01:28]} Qa3 {[%emt 0:00:08]} 33. Be4 {[%emt 0:03:54]} (33. Nxc6 $16 bxc6 34. Kh1) 33... Nxd4 {[%emt 0:01:26]} (33... Qxa5 $11 {remains equal.} 34. Bd5+ (34. Bxc6 Qxe1 35. Rxe1 bxc6 $15) 34... Kg7) 34. Bxd4 {[%emt 0:00:01]} Rd8 {[%emt 0:00:44] [#]} 35. Bb6 {[%emt 0:02:43]} ({But not} 35. Bd5+ $6 e6 36. Bb6 Re8 $14) 35... Re8 {[%emt 0:01:10]} 36. Rf3 {[%emt 0:02:50]} (36. Qd2 $16) 36... Qa2 $2 {[%emt 0:00:59]} (36... Qa4 $1 $11) 37. c5 $2 {[%emt 0:02:52]} ({White should try} 37. Qb4 $18 {Black must now prevent Rf2.} h4 38. c5) 37... f5 $11 {[%emt 0:00:41][%cal Oa2e6]} 38. Bd3 {[%emt 0:00:50]} Bg7 {[%emt 0:00:29]} (38... Bd7 $11) 39. Bb5 {[%emt 0:00:24]} Rf8 {[%emt 0:00:28]} 40. Kh2 $36 {[%emt 0:00:02][%mdl 2048] And now Re3 would win. White fights for an advantage.} Bf6 {[%emt 0:01:32]} 41. Qd1 {[%emt 0:02:03]} (41. Qf2 {simplifies} Be6 42. Qxa2 Bxa2 43. c6) 41... Be6 {[%emt 0:00:18]} 42. Re3 {[%emt 0:00:37]} ({White should play} 42. Qd3 $14) 42... Bd5 {[%emt 0:00:17]} (42... Bc4 $1 $11 43. Bxc4+ Qxc4) 43. Re2 $16 {[%emt 0:01:25]} Qb3 {[%emt 0:00:01]} 44. Qxb3 {[%emt 0:00:13]} Bxb3 {[%emt 0:00:01]} 45. c6 {[%emt 0:00:08]} bxc6 {[%emt 0:00:37]} 46. Bxc6 {[%emt 0:00:01]} Bc4 {[%emt 0:00:26]} 47. Rc2 {[%emt 0:00:02]} Bd3 {[%emt 0:01:20]} 48. Bd5+ {[%emt 0:00:20]} Kg7 {[%emt 0:00:14]} 49. Rc7 {[%emt 0:00:13]} g5 {[%emt 0:01:13]} 50. Bc5 {[%emt 0:00:28]} (50. Bb7 $18 {has better winning chances.}) 50... gxf4 $2 {[%emt 0:00:38]} (50... Rd8 $16 {is a better defense.} 51. Bf3 (51. Bxe7 $2 {perishes.} Rxd5 52. Bb4+ Kg6 $19) 51... gxf4) 51. Bxe7 $18 {[%emt 0:00:15]} Bxe7 {[%emt 0:00:28]} 52. Rxe7+ $16 {[%emt 0:00:01][%mdl 4096] Endgame. KRB-KRB} Kf6 $2 {[%emt 0:00:19]} (52... Kh8 {was worth a try.} 53. Bb7 Rf6) 53. Re6+ $18 {[%emt 0:00:01]} Kg5 {[%emt 0:00:12]} 54. a6 {[%emt 0:00:05][%cal Ba5a6,Ba6a7][%mdl 32] aiming for a7.} Be4 {[%emt 0:00:33]} 55. Rxe4 {[%emt 0:00:52]} fxe4 {[%emt 0:00:17]} 56. Bxe4 {[%emt 0:00:14] KR-KB} Rf7 {[%emt 0:00:17]} 57. Bb7 {[%emt 0:00:02]} f3 {[%emt 0:00:06]} 58. gxf3 {[%emt 0:00:35]} Rc7 {[%emt 0:01:53]} 59. a7 {[%emt 0:00:22]} Rc2+ {[%emt 0:00:09]} 60. Kg1 {[%emt 0:00:07]} Rc1+ {[%emt 0:00:54]} 61. Kf2 {[%emt 0:00:01] Weighted Error Value: White=0.29 (precise) /Black=0.50.  Loses game:     	---       	Black=2      Missed win:     	White=2     	---        Mistake:       	White=4     	Black=9      Inaccurate:     	White=2     	Black=4      OK:         	White=18    	Black=20     Best:        	White=6     	Black=5      Strong:       	White=1     	---} 1-0